lending/lending_fUSD_20240111
["ID","MTS","AMOUNT","RATE_DAILY","PERIOD"]
[311278736,1705012243108,-3296.73879242,0.00034,2]
[311278740,1705012243136,-14994.356,0.00034,2]
[311278753,1705012243255,-492.24618818,0.00034,2]
[311279067,1705012246147,-9236.7845,0.00034,2]
[311279074,1705012246200,-4405.40373479,0.00034,2]
[311279553,1705012676134,166.25,0.00030162,120]
[311279558,1705013234095,-155.0,0.00023458,2]
[311279559,1705013234116,-932.80587925,0.00023459,2]
[311279560,1705013234137,-1156.83749166,0.0002346,2]
[311279584,1705013432398,-5436.16739237,0.00023458,2]
[311279585,1705013432408,-555.51496816,0.00023465,2]
[311279616,1705013438202,-175.64503184,0.00023465,2]
[311279617,1705013438211,-713.37,0.00023468,2]
[311279618,1705013438220,-732.37,0.00023468,2]
[311279619,1705013438231,-90.76496816,0.00023471,2]
[311279620,1705013438470,-639.87503184,0.00023471,2]
[311279621,1705013438480,-316.71998242,0.00023472,2]
[311279622,1705013438493,-403.91001758,0.00023472,2]
[311279623,1705013438504,-300.0,0.00023472,2]
[311279624,1705013438515,-730.25,0.00023473,2]
[311279625,1705013438525,-731.79,0.00023473,2]
[311279626,1705013438536,-724.19,0.00023474,2]
[311279627,1705013438545,-711.2,0.00023475,2]
[311279628,1705013438555,-272.38490207,0.00023476,2]
[311279629,1705013438568,-449.93509793,0.00023476,2]
[311279630,1705013438577,-711.6,0.00023477,2]
[311279631,1705013438586,-712.03,0.00023477,2]
[311279632,1705013438595,-720.05,0.00023479,2]
[311279633,1705013438604,-720.06,0.00023479,2]
[311279634,1705013438613,-729.26,0.00023479,2]
[311279635,1705013438623,-726.7,0.0002348,2]
[311279636,1705013438632,-730.62,0.00023481,2]
[311279637,1705013438641,-713.52,0.00023481,2]
[311279638,1705013438650,-726.34,0.00023482,2]
[311279640,1705013438659,-716.5,0.00023482,2]
[311279642,1705013438668,-715.1,0.00023482,2]
[311279644,1705013438677,-737.13,0.00023482,2]
[311279645,1705013438686,-544.5807881,0.00023536,2]
[311279648,1705013438697,-165.8392119,0.00023536,2]
[311279650,1705013438707,-719.0,0.00023604,2]
[311279652,1705013438716,-728.79,0.0002369,2]
[311279654,1705013438725,-499.99,0.00023799,2]
[311279656,1705013438735,-727.18,0.00023799,2]
[311279658,1705013438744,-734.5,0.00023936,2]
[311279660,1705013438753,-729.13,0.00024111,2]
[311279662,1705013438762,-730.32,0.00024333,2]
[311279664,1705013438771,-713.82,0.00024622,2]
[311279667,1705013438780,-550.0,0.00025,3]
[311279669,1705013438790,-1581.98629386,0.00025,2]
[311279672,1705013438799,-420.0,0.00025467,2]
[311279674,1705013438809,-724.19,0.00026549,2]
[311279676,1705013438818,-651.16868522,0.00026587,2]
[311279679,1705013438841,-606.70110647,0.00026587,2]
[311279684,1705013438877,-10556.08390128,0.00026587,2]
[311279686,1705013438888,-12086.04630703,0.00026587,2]
[311279688,1705013438897,-200.0,0.00026645,2]
[311279690,1705013438906,-250.0,0.00026668,2]
[311279692,1705013438915,-1000.0,0.00026745,2]
[311279694,1705013438924,-244.52,0.00026829,2]
[311279696,1705013438933,-500.0,0.0002683,2]
[311279698,1705013438943,-150.0,0.00026854,2]
[311279700,1705013438952,-250.0,0.0002696,2]
[311279702,1705013438961,-600.0,0.00027,3]
[311279704,1705013438970,-250.0,0.00027397,2]
[311279706,1705013438979,-714.78,0.00027518,2]
[311279708,1705013438989,-587.0,0.00027633,2]
[311279710,1705013438998,-244.52,0.00027808,2]
[311279712,1705013439007,-932.80587925,0.00028653,2]
[311279714,1705013439016,-322.3974793,0.00028654,2]
[311279716,1705013439025,-244.52,0.00028786,2]
[311279718,1705013439034,-729.44024601,0.00028895,2]
[311279720,1705013439043,-650.0,0.00029,3]
[311279722,1705013439052,-719.27,0.00029079,2]
[311279724,1705013439061,-164.45,0.00029215,2]
[311279726,1705013439071,-162.62,0.00029215,2]
[311279728,1705013439079,-244.52,0.00029765,2]
[311279730,1705013439088,-823.0,0.00029983,2]
[311279732,1705013439098,-9622.66491322,0.0003,2]
[311279735,1705013439107,-155.0,0.0003,2]
[311279736,1705013439116,-1000.0,0.00030089,2]
[311279738,1705013439125,-1947.85183712,0.00030137,2]
[311279741,1705013439137,-8052.14816288,0.00030137,2]
[311279743,1705013439146,-153.84,0.00030137,2]
[311279745,1705013439156,-682.58768049,0.00030162,4]
[311279747,1705013439165,-200.0,0.00030162,2]
[311279749,1705013439174,-244.52,0.00030743,2]
[311279751,1705013439183,-700.0,0.00031,3]
[311279753,1705013439192,-153.84,0.0003105,2]
[311279755,1705013439201,-152.71,0.00031507,2]
[311279757,1705013439210,-722.76,0.0003159,2]
[311279759,1705013439219,-165.05,0.00031644,2]
[311279760,1705013439228,-244.52,0.00031722,2]
[311279762,1705013439238,-14049.43953688,0.00031798,2]
[311279764,1705013439247,-2142.52854897,0.00031898,4]
[311279767,1705013439257,-172.46613892,0.00031898,2]
[311279768,1705013439266,-1000.0,0.00031899,2]
[311279770,1705013439275,-167.01824302,0.00031899,4]
[311279772,1705013439284,-638.0874,0.000319,2]
[311279774,1705013439293,-14924.665,0.000319,2]
[311279776,1705013439302,-59962.4369,0.000319,2]
[311279778,1705013439311,-153.84,0.00031963,2]
[311279780,1705013439320,-32924.272042,0.0003199,3]
[311279782,1705013439329,-1572.87627363,0.00031998,2]
[311279784,1705013439338,-605.915,0.00031998,4]
[311279786,1705013439347,-215.83040836,0.00031998,4]
[311279788,1705013439357,-4646.65940082,0.00031998,4]
[311279789,1705013439367,-257.16711397,0.00031998,4]
[311279790,1705013439376,-177.6089,0.00031998,4]
[311279791,1705013439386,-223.97923977,0.00031998,4]
[311279792,1705013439395,-184.0365,0.00031998,4]
[311279793,1705013439404,-3812.64771599,0.00031998,4]
[311279794,1705013439413,-2158.03266609,0.00031999,4]
[311279795,1705013439423,-155.40537843,0.00031999,4]
[311279796,1705013439433,-398.40278938,0.00031999,4]
[311279797,1705013439443,-221.33301398,0.00031999,4]
[311279798,1705013439452,-742.66105807,0.00031999,4]
[311279799,1705013439462,-155.68374332,0.00032,2]
[311279800,1705013439471,-135989.26982642,0.00032,2]
[311279833,1705013443183,-1346.15,0.00023936,2]
[311279834,1705013443193,-2000.0,0.0002689,2]
[311279835,1705013443203,-2734.96538905,0.00030088,2]
[311279836,1705013443214,-37570.5574933,0.00032,2]
[311279837,1705013443224,-720.07,0.00032302,2]
[311279838,1705013443234,-1056.0,0.00032532,3]
[311279839,1705013443244,-244.52,0.000327,2]
[311279840,1705013443253,-155.0,0.0003284,2]
[311279841,1705013443263,-153.84,0.00032877,2]
[311279842,1705013443272,-757.77,0.00032877,15]
[311279843,1705013443281,-500.0,0.00032877,2]
[311279844,1705013443292,-531.0,0.000329,2]
[311279845,1705013443301,-8231.0680105,0.00032931,4]
[311279846,1705013443310,-45598.00388546,0.0003299,4]
[311279847,1705013443337,-3788.40417754,0.0003299,4]
[311279848,1705013443345,-329.46,0.00032999,2]
[311279849,1705013443356,-6374.70252241,0.00033,2]
[311279850,1705013443398,-963.9344026,0.00033,2]
[311279851,1705013443409,-842.698868,0.00033,2]
[311279858,1705013448492,-500.89,0.00030633,2]
[311279859,1705013448502,-18.9511241,0.00032551,2]
[311279860,1705013448579,-231.0488759,0.00032551,2]
[311279861,1705013448589,-67.84612882,0.00032897,2]
[311279869,1705013511391,3885.34137686,0.00021,4]
[311279871,1705013639545,150.0,0.00022,2]
[311279874,1705013645798,1680.52,0.0002,2]
[311279875,1705013662204,765.0,0.00022,2]
[311279876,1705013673058,481.34835111,0.00021,2]
[311279922,1705013780592,200.5525746,0.00021918,2]
[311279963,1705013913731,871.33907656,0.00021848,2]
[311279964,1705013916817,620.68243241,0.00022078,2]
[311279966,1705013918766,3185.21463735,0.00022078,2]
[311279968,1705013943323,190.3679819,0.00020698,2]
[311279969,1705013953775,283.890975,0.00021918,2]
[311279971,1705013968435,155.0,0.00021158,2]
[311279973,1705013975772,283.14658005,0.00021918,2]
[311279985,1705014144313,-150.0,0.00022899,2]
[311279986,1705014144334,-5436.16739237,0.00022899,2]
[311279987,1705014144355,-205.21073047,0.000229,2]
[311279988,1705014144375,-638.0874,0.000229,2]
[311279989,1705014144398,-232.12465168,0.000229,2]
[311279990,1705014144418,-187.57742064,0.000229,2]
[311279991,1705014144439,-2111.8184,0.000229,2]
[311279992,1705014144460,-2428.9975,0.000229,2]
[311279993,1705014144481,-605.915,0.00022998,2]
[311279994,1705014144505,-2158.03266609,0.00022998,2]
[311279995,1705014144527,-2142.52854897,0.00022998,2]
[311279996,1705014144549,-184.0365,0.00022998,2]
[311279997,1705014144570,-158.57658362,0.00022998,2]
[311279998,1705014144593,-155.37801653,0.00022998,2]
[311279999,1705014144614,-201.45980625,0.00022998,2]
[311280000,1705014144645,-398.40278938,0.00022999,2]
[311280001,1705014144665,-4646.65940082,0.00022999,2]
[311280002,1705014144685,-223.97923977,0.00022999,2]
[311280003,1705014144706,-3812.64771599,0.00022999,2]
[311280004,1705014144727,-310.78083309,0.00022999,2]
[311280005,1705014144747,-177.6089,0.00022999,2]
[311280006,1705014144768,-14049.43953688,0.00022999,2]
[311280007,1705014144789,-399.97788808,0.00022999,2]
[311280008,1705014144809,-155.40537843,0.00022999,2]
[311280009,1705014144830,-257.16711397,0.00022999,2]
[311280010,1705014144852,-301.84442122,0.00022999,2]
[311280011,1705014144873,-215.83040836,0.00022999,2]
[311280012,1705014144895,-172.46613892,0.00022999,2]
[311280013,1705014144916,-364.67620993,0.00022999,2]
[311280014,1705014144938,-155.0,0.00022999,2]
[311280015,1705014144961,-258.05784905,0.00022999,2]
[311280016,1705014144982,-742.66105807,0.00022999,2]
[311280017,1705014145003,-3854.1171014,0.00022999,2]
[311280018,1705014145026,-2447507.36740002,0.00023,2]
[311280019,1705014145851,684.92408583,0.00022,2]
[311280020,1705014153002,155.19155234,0.00021158,2]
[311280022,1705014214210,600.0,0.00021995,2]
[311280023,1705014269955,200.0,0.00021904,2]
[311280024,1705014297602,263.5,0.0002205,2]
[311280025,1705014297814,263.5,0.0002211,2]
[311280026,1705014298049,263.5,0.0002217,2]
[311280027,1705014298476,263.5,0.00022231,2]
[311280028,1705014298684,263.5,0.00022291,2]
[311280029,1705014298910,263.5,0.00022352,2]
[311280030,1705014299143,263.5,0.00022412,2]
[311280031,1705014299512,263.5,0.00022473,2]
[311280032,1705014317642,805.03,0.00020077,2]
[311280033,1705014317948,805.03,0.00022341,2]
[311280037,1705014352550,200.0,0.00021873,2]
[311280038,1705014356811,7391.45,0.00021918,2]
[311280039,1705014364307,198.05,0.00022424,2]
[311280050,1705014413604,825.74,0.00021868,2]
[311280065,1705014443090,-155.11589975,0.00022525,2]
[311280068,1705014445715,175.72,0.00021872,2]
[311280069,1705014446587,5456.05,0.00021995,2]
[311280082,1705014467993,671.85,0.00021873,2]
[311280083,1705014477166,492.58,0.00021876,2]
[311280084,1705014477376,492.58,0.00021991,2]
[311280085,1705014477603,492.58,0.00022106,2]
[311280086,1705014477846,492.58,0.00022222,2]
[311280087,1705014478074,492.58,0.00022337,2]
[311280088,1705014478292,492.58,0.00022452,2]
[311280094,1705014525377,2000.0,0.00021868,2]
[311280103,1705014528797,500.0,0.00021863,2]
[311280132,1705014558186,2580.85,0.00022038,2]
[311280144,1705014591102,500.0,0.00021868,2]
[311280151,1705014606580,150.0,0.00022,2]
[311280186,1705014631723,-300.87488751,0.00022516,2]
[311280187,1705014631734,-191.31120874,0.00022516,2]
[311280188,1705014631746,-1064.22017222,0.00022516,2]
[311280189,1705014631757,-310.16,0.00022516,2]
[311280190,1705014631773,-750.0,0.00022516,2]
[311280194,1705014631788,-1191.11904289,0.00022516,2]
[311280200,1705014631813,-1929.35696852,0.00022516,2]
[311280203,1705014631822,-8164.61393783,0.00022516,2]
[311280208,1705014631858,-3248.50158787,0.00022516,2]
[311280209,1705014631870,-1987.23781893,0.00022516,2]
[311280214,1705014634630,975.22,0.00021868,2]
[311280227,1705014637419,-6017.24481444,0.00022516,2]
[311280228,1705014637474,-23526.04602912,0.00022516,2]
[311280229,1705014637483,-3672.02312702,0.00022517,4]
[311280230,1705014637493,-150.0,0.0002252,2]
[311280231,1705014637502,-263.5,0.00022533,2]
[311280232,1705014637511,-492.58,0.00022567,2]
[311280233,1705014637520,-263.5,0.00022594,2]
[311280234,1705014637529,-263.5,0.00022654,2]
[311280235,1705014637538,-492.58,0.00022682,2]
[311280236,1705014637547,-499.99,0.00022715,2]
[311280237,1705014637556,-263.5,0.00022715,2]
[311280238,1705014637566,-264.96451937,0.00022768,2]
[311280239,1705014637575,-263.5,0.00022775,2]
[311280240,1705014637584,-492.58,0.00022797,2]
[311280241,1705014637594,-376.5362931,0.000228,2]
[311280242,1705014637603,-150.78,0.00022804,2]
[311280243,1705014637612,-376.53629302,0.00022805,2]
[311280244,1705014637621,-376.53629302,0.00022811,2]
[311280245,1705014637630,-376.53629302,0.00022816,2]
[311280246,1705014637639,-376.53629302,0.00022821,2]
[311280247,1705014637649,-376.53629302,0.00022826,2]
[311280248,1705014637658,-376.53629302,0.00022832,2]
[311280249,1705014637667,-263.5,0.00022836,2]
[311280250,1705014637707,-376.53629302,0.00022837,2]
[311280251,1705014637717,-376.53629302,0.00022842,2]
[311280252,1705014637727,-975.22,0.00022847,2]
[311280253,1705014637737,-376.53629302,0.00022847,2]
[311280254,1705014637747,-376.53629302,0.00022853,2]
[311280255,1705014637757,-376.53629302,0.00022858,2]
[311280256,1705014637768,-376.53629302,0.00022863,2]
[311280257,1705014637778,-376.53629302,0.00022868,2]
[311280258,1705014637788,-376.53629302,0.00022874,2]
[311280259,1705014637799,-376.53629302,0.00022879,2]
[311280260,1705014637809,-376.53629302,0.00022884,2]
[311280261,1705014637818,-376.53629302,0.00022889,2]
[311280262,1705014637828,-376.53629302,0.00022895,2]
[311280263,1705014637838,-263.5,0.00022896,2]
[311280264,1705014637848,-404.36825753,0.00022898,2]
[311280265,1705014637859,-344.7584,0.00022898,2]
[311280266,1705014637870,-1000.0,0.00022899,2]
[311280268,1705014637879,-38478.5933,0.000229,2]
[311280270,1705014637889,-6032.02059651,0.000229,2]
[311280272,1705014637899,-376.53629302,0.000229,2]
[311280274,1705014637909,-1399.23471091,0.000229,2]
[311280276,1705014637918,-502.93674532,0.000229,2]
[311280278,1705014637928,-492.58,0.00022912,2]
[311280280,1705014637937,-263.5,0.00022957,2]
[311280282,1705014637947,-671.85,0.00022967,2]
[311280283,1705014637957,-418.68518496,0.00022987,2]
[311280292,1705014638169,-175.66370758,0.0002299,2]
[311280295,1705014638179,-175.66370758,0.0002299,2]
[311280297,1705014638189,-175.66370758,0.0002299,2]
[311280298,1705014638199,-266.14219942,0.00022998,2]
[311280301,1705014638210,-939.37733012,0.00022998,2]
[311280302,1705014638220,-1617.63390836,0.00022998,2]
[311280304,1705014638231,-155.2405482,0.00022998,2]
[311280307,1705014638241,-155.0,0.00022998,2]
[311280308,1705014638250,-202.36211742,0.00022998,2]
[311280311,1705014638261,-2897.77192156,0.00022998,2]
[311280312,1705014638271,-523.20670564,0.00022998,2]
[311280314,1705014638280,-155.40206774,0.00022998,2]
[311280317,1705014638290,-161.78271425,0.00022998,2]
[311280319,1705014638300,-270.12495605,0.00022998,2]
[311280321,1705014638311,-336.63299697,0.00022998,2]
[311280323,1705014638321,-248.2795636,0.00022998,2]
[311280325,1705014638330,-156.05101952,0.00022998,2]
[311280327,1705014638340,-155.0,0.00022998,2]
[311280329,1705014638350,-17395.95078489,0.00022998,2]
[311280331,1705014638360,-310.79630964,0.00022998,2]
[311280333,1705014638370,-1578.21583504,0.00022998,2]
[311280335,1705014638381,-270.15196115,0.00022998,2]
[311280337,1705014638391,-155.000002,0.00022998,2]
[311280339,1705014638401,-155.99031637,0.00022998,2]
[311280341,1705014638411,-155.56975141,0.00022998,2]
[311280343,1705014638421,-177.6089,0.00022998,2]
[311280345,1705014638431,-18988.46719769,0.00022998,2]
[311280347,1705014638441,-290.95665765,0.00022998,2]
[311280349,1705014638451,-155.0,0.00022998,2]
[311280351,1705014638461,-157.38860694,0.00022998,2]
[311280353,1705014638472,-155.09482443,0.00022998,2]
[311280355,1705014638482,-550.69445826,0.00022999,2]
[311280357,1705014638492,-243.26769982,0.00022999,2]
[311280359,1705014638501,-33711.53322621,0.00022999,2]
[311280361,1705014638512,-4481.53085452,0.00022999,2]
[311280363,1705014638521,-171.85542172,0.00022999,2]
[311280365,1705014638533,-5782.30625905,0.00022999,2]
[311280367,1705014638543,-2136.08960768,0.00022999,2]
[311280369,1705014638553,-155.0,0.00022999,2]
[311280372,1705014638563,-155.78239191,0.00022999,2]
[311280374,1705014638574,-150.0,0.00022999,2]
[311280376,1705014638583,-150.0,0.00022999,2]
[311280377,1705014638593,-150.0,0.00022999,2]
[311280379,1705014638602,-150.0,0.00022999,2]
[311280382,1705014638613,-4002840.16096273,0.00023,2]
[311280383,1705014638622,-932.80587925,0.00023,2]
[311280385,1705014638632,-1084827.95711091,0.00023,2]
[311280387,1705014638643,-263.5,0.00023017,2]
[311280389,1705014638653,-492.58,0.00023028,2]
[311280391,1705014638664,-23900.0,0.00023071,2]
[311280393,1705014638673,-263.5,0.00023077,2]
[311280395,1705014638683,-3758.72764129,0.0002313,2]
[311280398,1705014638695,-150.78,0.00023134,2]
[311280400,1705014638706,-263.5,0.00023138,2]
[311280402,1705014638717,-492.58,0.00023143,2]
[311280404,1705014638726,-263.5,0.00023198,2]
[311280406,1705014638737,-492.58,0.00023258,2]
[311280408,1705014638747,-451.70278016,0.00023288,4]
[311280410,1705014638757,-443.46227379,0.00023288,4]
[311280412,1705014638766,-462.3324194,0.00023288,4]
[311280414,1705014638776,-197.15598527,0.00023288,2]
[311280415,1705014638786,-480.09927399,0.00023288,2]
[311280417,1705014638795,-501.89197797,0.00023288,4]
[311280420,1705014638807,-351.9285625,0.00023288,4]
[311280421,1705014638817,-513.70268823,0.00023288,4]
[311280423,1705014638827,-370.64345198,0.00023288,2]
[311280426,1705014638837,-259.04337649,0.00023288,2]
[311280427,1705014638848,-370.45047162,0.00023288,4]
[311280430,1705014638859,-200.75679118,0.00023288,4]
[311280432,1705014638870,-205.48107528,0.00023288,4]
[311280433,1705014638880,-492.58,0.00023373,2]
[311280436,1705014638890,-150.78,0.00023464,2]
[311280437,1705014638900,-492.58,0.00023488,2]
[311280439,1705014638910,-492.58,0.00023603,2]
[311280441,1705014638920,-492.58,0.00023719,2]
[311280443,1705014638930,-150.78,0.00023794,2]
[311280445,1705014638940,-975.22,0.00023825,2]
[311280447,1705014638950,-492.58,0.00023834,2]
[311280450,1705014638961,-492.58,0.00023949,2]
[311280451,1705014638971,-6032.02059648,0.00023991,2]
[311280454,1705014638982,-435.36664987,0.00024,2]
[311280457,1705014639004,-671.85,0.00024061,2]
[311280459,1705014639015,-492.58,0.00024064,2]
[311280461,1705014639025,-150.78,0.00024124,2]
[311280463,1705014639035,-166.95,0.00024297,2]
[311280465,1705014639044,-150.78,0.00024454,2]
[311280467,1705014639053,-1399.23471087,0.00024471,2]
[311280469,1705014639062,-805.03,0.00024605,2]
[311280471,1705014639073,-250.0,0.00024658,2]
[311280473,1705014639082,-600.0,0.00024744,2]
[311280475,1705014639092,-202.08,0.00024766,2]
[311280477,1705014639101,-210.0,0.00024772,2]
[311280479,1705014639111,-150.78,0.00024783,2]
[311280481,1705014639120,-975.22,0.00024804,2]
[311280483,1705014639130,-151.0,0.000249,2]
[311280485,1705014639139,-150.0,0.00024987,2]
[311280487,1705014639149,-150.0,0.00024987,2]
[311280490,1705014639159,-1535055.73564482,0.00024988,2]
[311280492,1705014639168,-1581.98629386,0.00025,2]
[311280494,1705014639177,-432.76488877,0.00025,2]
[311280496,1705014639187,-1246.87746617,0.00025,2]
[311280498,1705014639196,-691.04005445,0.00025,2]
[311280500,1705014639205,-430.0,0.00025,2]
[311280502,1705014639214,-708.32890429,0.00025,2]
[311280504,1705014639225,-2802.33869875,0.00025,2]
[311280506,1705014639235,-550.0,0.00025,3]
[311280508,1705014639245,-1016.69878254,0.00025,2]
[311280510,1705014639255,-167.05182833,0.00025,2]
[311280512,1705014639264,-6032.02059648,0.00025082,2]
[311280514,1705014639274,-1796.74731938,0.000251,2]
[311280516,1705014639283,-150.78,0.00025113,2]
[311280518,1705014639293,-671.85,0.00025154,2]
[311280520,1705014639302,-150.78,0.00025443,2]
[311280522,1705014639312,-273.6655949,0.0002549,2]
[311280525,1705014639322,-257.19,0.00025568,2]
[311280527,1705014639332,-257.19,0.00025703,2]
[311280529,1705014639341,-150.78,0.00025773,2]
[311280531,1705014639350,-975.22,0.00025782,2]
[311280533,1705014639360,-257.19,0.00025837,2]
[311280535,1705014639370,-257.19,0.00025972,2]
[311280537,1705014639380,-3397.86796347,0.00026,2]
[311280539,1705014639389,-200.78603965,0.00026,2]
[311280541,1705014639398,-1399.23471087,0.00026042,3]
[311280543,1705014639408,-150.0,0.00026079,2]
[311280545,1705014639418,-150.78,0.00026103,2]
[311280547,1705014639427,-257.19,0.00026107,2]
[311280549,1705014639437,-6032.02059648,0.00026173,2]
[311280551,1705014639446,-257.19,0.00026241,2]
[311280553,1705014639455,-671.85,0.00026248,2]
[311280555,1705014639464,-257.19,0.00026376,2]
[311280557,1705014639475,-261.42380051,0.000264,2]
[311280559,1705014639484,-150.78,0.00026433,2]
[311280562,1705014639497,-257.19,0.0002651,2]
[311280564,1705014639507,-2297.07,0.00026575,2]
[311280566,1705014639516,-257.19,0.00026645,2]
[311280568,1705014639525,-975.22,0.00026761,2]
[311280570,1705014639535,-150.78,0.00026763,2]
[311280572,1705014639546,-257.19,0.00026779,2]
[311280574,1705014639555,-400.0,0.00026781,2]
[311280576,1705014639564,-164.39,0.00026839,2]
[311280578,1705014639575,-805.03,0.00026869,2]
[311280580,1705014639584,-257.19,0.00026914,2]
[311280582,1705014639594,-221.33301398,0.00027,2]
[311280584,1705014639604,-600.0,0.00027,3]
[311280586,1705014639613,-157.67,0.00027008,2]
[311280589,1705014639623,-257.19,0.00027049,2]
[311280591,1705014639632,-150.78,0.00027093,2]
[311280593,1705014639641,-257.19,0.00027183,2]
[311280595,1705014639650,-293.0,0.0002725,2]
[311280597,1705014639660,-6032.02059648,0.00027264,2]
[311280599,1705014639669,-1417.73900732,0.000273,2]
[311280601,1705014639679,-502.93674531,0.000273,2]
[311280603,1705014639688,-257.19,0.00027318,2]
[311280605,1705014639698,-223.20855706,0.00027397,2]
[311280607,1705014639707,-2506.93398851,0.00027397,2]
[311280609,1705014639719,-155.0,0.00027397,2]
[311280611,1705014639728,-493.76,0.00027397,2]
[311280613,1705014639737,-250.0,0.00027397,2]
[311280615,1705014639747,-2500.0,0.00027397,4]
[311280617,1705014639756,-257.19,0.00027452,2]
[311280619,1705014639765,-600.0,0.00027494,2]
[311280621,1705014639774,-7969.17823963,0.000275,2]
[311280623,1705014639783,-493.76,0.00027556,2]
[311280625,1705014639793,-257.19,0.00027587,2]
[311280627,1705014639802,-1399.23471087,0.00027613,3]
[311280629,1705014639812,-493.76,0.00027714,2]
[311280631,1705014639822,-257.19,0.00027722,2]
[311280634,1705014639834,-975.22,0.00027739,2]
[311280636,1705014639844,-257.19,0.00027856,2]
[311280638,1705014639853,-493.76,0.00027872,2]
[311280640,1705014639862,-257.19,0.00027991,2]
[311280642,1705014639872,-687.02354933,0.00028,2]
[311280644,1705014639881,-6144.09666451,0.00028,2]
[311280646,1705014639891,-202.73182804,0.00028,2]
[311280648,1705014639899,-493.76,0.0002803,2]
[311280650,1705014639909,-257.19,0.00028125,2]
[311280652,1705014639918,-493.76,0.00028189,2]
[311280654,1705014639927,-157.67,0.00028279,2]
[311280656,1705014639937,-166.95,0.00028307,2]
[311280658,1705014639946,-493.76,0.00028347,2]
[311280660,1705014639956,-6032.02059648,0.00028355,2]
[311280662,1705014639965,-493.76,0.00028505,2]
[311280664,1705014639975,-493.76,0.00028664,2]
[311280666,1705014639985,-975.22,0.00028718,2]
[311280668,1705014639995,-155.0,0.00028767,2]
[311280670,1705014640004,-493.76,0.00028822,2]
[311280672,1705014640014,-1588.46355641,0.00029,15]
[311280674,1705014640023,-650.0,0.00029,3]
[311280677,1705014640033,-160.10630196,0.00029,2]
[311280679,1705014640042,-28954.0,0.00029,2]
[311280681,1705014640051,-2941.0,0.00029,2]
[311280683,1705014640061,-805.03,0.00029133,2]
[311280685,1705014640071,-1399.23471087,0.00029184,4]
[311280687,1705014640080,-202.08,0.00029275,2]
[311280689,1705014640090,-6032.02059648,0.00029445,2]
[311280691,1705014640099,-9989.30842745,0.000295,2]
[311280693,1705014640109,-187.63828412,0.000295,3]
[311280695,1705014640119,-157.67,0.00029549,2]
[311280697,1705014640128,-975.22,0.00029696,2]
[311280699,1705014640138,-205.21073047,0.000297,2]
[311280701,1705014640147,-340.22920454,0.00029797,2]
[311280704,1705014640156,-150.0,0.00029799,2]
[311280706,1705014640169,-150.0,0.00029799,2]
[311280708,1705014640179,-150.0,0.00029799,2]
[311280710,1705014640188,-150.0,0.00029799,2]
[311280712,1705014640197,-1332574.95142432,0.000298,2]
[311280753,1705014640562,-98868.27092553,0.000298,2]
[311280755,1705014640573,-195.68945489,0.000298,2]
[311280757,1705014640583,-16951.64945071,0.000299,2]
[311280759,1705014640592,-2715.22247625,0.0002996,2]
[311280761,1705014640602,-170.11460227,0.00029997,2]
[311280763,1705014640612,-1572.87627363,0.0003,2]
[311280765,1705014640621,-17758.5821026,0.0003,2]
[311280766,1705014640630,-155.0,0.0003,2]
[311280767,1705014640639,-9622.66491322,0.0003,2]
[311280768,1705014640649,-180.03139712,0.0003,30]
[311280769,1705014640658,-2734.96538905,0.0003,2]
[311280770,1705014640667,-408.23143468,0.0003,7]
[311280771,1705014640676,-155.22125219,0.0003,30]